[Event "Gibraltar Challengers A 2019"]
[Site "Caleta"]
[Date "2019.01.22"]
[Round "2"]
[White "Vinal Gutierrez, Pedro"]
[Black "Saber, Yasser"]
[Result "1-0"]
[ECO "D02"]
[WhiteElo "1997"]
[BlackElo "2201"]
[Annotator "NA"]
[PlyCount "133"]
[EventDate "2019.01.18"]
[EventType "swiss"]
[EventCountry "GGB"]
[SourceTitle "playchess.com"]
[Source "ChessBase"]
[SourceQuality "1"]
[TimeControl "6600+10"]

1. d4 {[%emt 0:00:00]} d5 {[%emt 0:00:48]} 2. Bf4 {[%emt 0:00:31]} Nf6 {[%emt 0:00:10]} 3. e3 {[%emt 0:00:10]} c5 {[%emt 0:00:31]} 4. c3 {[%emt 0:00:10]} Nc6 {[%emt 0:00:44]} 5. Nd2 {[%emt 0:00:49]} e6 {[%emt 0:03:19]} 6. Ngf3 {[%emt 0:01:53]} Be7 {[%emt 0:01:40]} 7. h3 {[%emt 0:01:19] LiveBook: 104 Games} O-O {[%emt 0:00:16]} 8. Bd3 {[%emt 0:00:39]} b6 {[%emt 0:01:55]} 9. O-O {[%emt 0:01:08]} Bb7 {[%emt 0:00:11]} 10. Ne5 {[%emt 0:01:47]} Nxe5 {[%emt 0:07:37]} 11. Bxe5 {[%emt 0:02:09]} Qc8 {[%emt 0:10:11] D02: 1 d4 d5 2 Nf3 sidelines, including 2...Nf6 3 g3 and 2...Nf6 3 Bf4} 12. Re1 $146 {[%emt 0:07:13]} ({Predecessor:} 12. Qe2 a5 13. dxc5 bxc5 14. c4 Nd7 15. Bg3 Bf6 16. Nf3 dxc4 17. Bxc4 Bxf3 18. gxf3 Be5 19. f4 {0-1 (79) Dzindzichashvili,R (2542)-Psakhis,L (2598) ICC INT 2001}) 12... Rd8 {[%emt 0:04:55]} 13. Qf3 {[%emt 0:02:54]} Nd7 {[%emt 0:16:57]} 14. Bf4 {[%emt 0:03:41]} f5 {[%emt 0:10:31]} 15. Qg3 {[%emt 0:02:23]} Nf8 {[%emt 0:12:16]} 16. Nf3 {[%emt 0:04:24]} Ba6 {[%emt 0:02:23]} 17. Bc2 {[%emt 0:01:20]} Ng6 {[%emt 0:01:52]} 18. Rac1 {[%emt 0:01:17]} Qd7 {[%emt 0:07:38]} 19. h4 {[%emt 0:02:14]} Bd6 {[%emt 0:17:43]} 20. Bxd6 {[%emt 0:04:40]} Qxd6 {[%emt 0:00:02]} 21. Qxd6 {[%emt 0:00:23]} Rxd6 {[%emt 0:00:01]} 22. h5 {[%emt 0:01:16]} Nf8 {[%emt 0:01:24]} 23. Ba4 {[%emt 0:01:37]} Bc8 {[%emt 0:00:02]} 24. Ne5 {[%emt 0:00:50]} Bd7 {[%emt 0:00:24]} 25. Bd1 {[%emt 0:05:03]} Be8 {[%emt 0:01:46]} 26. Nd3 {[%emt 0:01:07]} Rc8 {[%emt 0:00:36]} 27. g3 {[%emt 0:00:44]} Nd7 {[%emt 0:00:16]} 28. Kg2 {[%emt 0:00:39]} Nf6 {[%emt 0:00:45]} 29. Rh1 {[%emt 0:01:04]} Bb5 {[%emt 0:00:30]} 30. Ne5 {[%emt 0:00:55]} Nd7 {[%emt 0:00:32]} 31. f4 {[%emt 0:03:17]} Nxe5 {[%emt 0:01:45]} 32. fxe5 {[%emt 0:00:15]} Rd7 {[%emt 0:01:40]} 33. Bc2 {[%emt 0:00:23]} Rf7 {[%emt 0:01:39]} 34. Kf2 {[%emt 0:00:48]} Kf8 {[%emt 0:00:17]} 35. h6 {[%emt 0:00:33]} g6 {[%emt 0:01:04]} 36. Kf3 {[%emt 0:00:26]} Ke7 {[%emt 0:00:37]} 37. Rh2 {[%emt 0:00:43]} Rg8 {[%emt 0:00:33]} 38. Bb1 {[%emt 0:02:10]} Kd8 {[%emt 0:00:27]} 39. Rd1 {[%emt 0:03:35]} g5 {[%emt 0:00:16]} 40. Bc2 {[%emt 0:00:40]} g4+ {[%emt 0:00:03]} 41. Kf4 {[%emt 0:00:44]} Rd7 {[%emt 0:00:22]} 42. Re1 {[%emt 0:00:22]} Ke7 {[%emt 0:00:03]} 43. Rh5 {[%emt 0:00:18]} Rdd8 {[%emt 0:00:06]} 44. Rh2 {[%emt 0:02:26]} Rc8 {[%emt 0:00:04]} 45. Bb1 {[%emt 0:00:51]} Bc4 {[%emt 0:00:10]} 46. Rd1 {[%emt 0:01:14]} a5 {[%emt 0:00:04]} 47. Rhd2 {[%emt 0:03:23]} Ba6 {[%emt 0:00:14]} (47... a4 $15 {keeps the upper hand.}) 48. Rh2 {[%emt 0:00:54]} Bc4 {[%emt 0:00:16]} 49. Rhd2 {[%emt 0:00:12]} Rc6 $2 {[%emt 0:00:19]} 50. Rh1 {[%emt 0:00:50]} Ba6 {[%emt 0:00:07]} 51. Bc2 {[%emt 0:00:52]} b5 {[%emt 0:00:17]} 52. dxc5 {[%emt 0:03:07]} Rxc5 {[%emt 0:00:05]} 53. Bd3 {[%emt 0:01:27]} Bb7 {[%emt 0:00:01]} 54. Be2 {[%emt 0:02:23]} b4 {[%emt 0:00:23]} 55. cxb4 {[%emt 0:01:15]} axb4 {[%emt 0:00:01]} 56. Bd3 {[%emt 0:00:34]} Ra5 {[%emt 0:00:20]} 57. Rc1 {[%emt 0:00:37]} Kd7 {[%emt 0:00:11]} 58. Rdc2 {[%emt 0:00:31]} Rc8 {[%emt 0:00:07]} 59. Rxc8 {[%emt 0:00:37]} Bxc8 {[%emt 0:00:00]} 60. Kg5 {[%emt 0:01:44]} Rxa2 {[%emt 0:00:21]} 61. Kf6 {[%emt 0:00:16]} Rxb2 {[%emt 0:00:10]} 62. Kg7 {[%emt 0:00:44]} Rd2 {[%emt 0:00:11]} 63. Bb5+ {[%emt 0:00:31]} Kd8 {[%emt 0:00:03]} 64. Kxh7 {[%emt 0:00:27]} b3 {[%emt 0:00:16]} 65. Kg7 {[%emt 0:00:14]} Rc2 {[%emt 0:00:12]} 66. Rb1 {[%emt 0:00:40]} Rh2 {[%emt 0:00:10]} 67. h7 $18 {[%emt 0:00:26]} 1-0

[Event "Gibraltar Challengers A 2019"]
[Site "Caleta"]
[Date "2019.01.22"]
[Round "2"]
[White "Burke, Mitchell R"]
[Black "Abdulraheem Abdulrahman Akint"]
[Result "0-1"]
[ECO "C31"]
[WhiteElo "1994"]
[BlackElo "2224"]
[Annotator "NA"]
[PlyCount "75"]
[EventDate "2019.01.18"]
[EventType "swiss"]
[EventCountry "GGB"]
[SourceTitle "playchess.com"]
[Source "ChessBase"]
[SourceQuality "1"]
[TimeControl "6600+10"]

1. e4 {[%emt 0:04:46]} e5 {[%emt 0:00:00]} 2. f4 {[%emt 0:01:18]} d5 {[%emt 0:00:10]} 3. exd5 {[%emt 0:02:42]} c6 {[%emt 0:00:11]} 4. d4 {[%emt 0:07:20]} exd4 {[%emt 0:03:01]} 5. Nf3 {[%emt 0:12:16]} Bb4+ {[%emt 0:02:33]} 6. c3 {[%emt 0:14:47]} dxc3 {[%emt 0:00:38]} 7. Nxc3 {[%emt 0:14:31]} Nf6 {[%emt 0:01:41]} 8. Qe2+ {[%emt 0:06:47]} Be7 {[%emt 0:01:06]} 9. dxc6 {[%emt 0:08:59]} Nxc6 {[%emt 0:00:19]} 10. Be3 {[%emt 0:03:06]} O-O {[%emt 0:00:49]} 11. Rd1 {[%emt 0:03:18]} Qa5 {[%emt 0:04:14]} 12. Qb5 {[%emt 0:09:49]} Bb4 {[%emt 0:01:03]} 13. Qxa5 {[%emt 0:02:16]} Bxa5 {[%emt 0:00:08]} 14. Bb5 {[%emt 0:02:45]} Ng4 {[%emt 0:08:42]} 15. Bc5 {[%emt 0:03:34]} Re8+ {[%emt 0:02:41]} 16. Kd2 {[%emt 0:02:34]} Be6 {[%emt 0:04:39]} 17. h3 {[%emt 0:00:47]} Nf6 {[%emt 0:00:39]} 18. Rhe1 {[%emt 0:02:21]} Bd5 {[%emt 0:14:16]} 19. Ne5 {[%emt 0:04:07]} Ne4+ {[%emt 0:04:02]} 20. Rxe4 {[%emt 0:00:12]} Bxc3+ {[%emt 0:00:52]} 21. Kxc3 {[%emt 0:00:22]} Bxe4 {[%emt 0:00:17]} 22. Nxf7 {[%emt 0:01:47]} Kxf7 {[%emt 0:09:56]} 23. Bc4+ {[%emt 0:00:12]} Kg6 {[%emt 0:03:17]} 24. Rd7 {[%emt 0:02:10]} h6 {[%emt 0:03:54]} 25. Bf7+ {[%emt 0:00:32]} Kh7 {[%emt 0:00:09]} 26. Bxe8 {[%emt 0:00:01]} Rxe8 {[%emt 0:00:16]} 27. Rxb7 {[%emt 0:00:01]} Bxg2 {[%emt 0:01:24]} 28. b4 {[%emt 0:00:01]} Rc8 {[%emt 0:03:02]} 29. Rd7 {[%emt 0:01:12]} Bxh3 {[%emt 0:00:23]} 30. Rd6 {[%emt 0:00:08]} a6 {[%emt 0:00:33]} 31. a4 {[%emt 0:00:02]} h5 {[%emt 0:01:10]} 32. b5 {[%emt 0:00:01]} (32. Bf2 $142) 32... axb5 {[%emt 0:00:33]} 33. axb5 {[%emt 0:00:01]} Nd8 {[%emt 0:00:18]} 34. Kb4 $19 {[%emt 0:00:31]} (34. Rd5 $142 Bg4 35. Kb4) 34... Nb7 {[%emt 0:00:48]} 35. Rd5 {[%emt 0:00:16]} Rxc5 {[%emt 0:00:24]} 36. Rxc5 {[%emt 0:00:16]} Nxc5 {[%emt 0:00:43]} 37. Kxc5 {[%emt 0:00:01]} Bg2 {[%emt 0:00:31]} 38. Kd4 {[%emt 0:00:57]} 0-1

[Event "Gibraltar Challengers A 2019"]
[Site "Caleta"]
[Date "2019.01.22"]
[Round "2"]
[White "Lutz, Juergen"]
[Black "Suez-Panama, Gilles"]
[Result "0-1"]
[ECO "A25"]
[WhiteElo "1960"]
[BlackElo "2078"]
[Annotator "NA"]
[PlyCount "80"]
[EventDate "2019.01.18"]
[EventType "swiss"]
[EventCountry "GGB"]
[SourceTitle "playchess.com"]
[Source "ChessBase"]
[SourceQuality "1"]
[TimeControl "6600+10"]

1. c4 {[%emt 0:03:11]} e5 {[%emt 0:00:00]} 2. Nc3 {[%emt 0:00:15]} Nc6 {[%emt 0:00:03]} 3. g3 {[%emt 0:01:36]} f5 {[%emt 0:00:07]} 4. e4 {[%emt 0:02:59] A25: English Opening vs King's Indian with ...Nc6 but without early d3} (4. Bg2 Nf6 5. d3 Bb4 6. Nf3 Bxc3+ 7. bxc3 d6 8. Bg5 Bd7 9. Nd2 h6 10. Bxf6 Qxf6 11. Rb1 Rb8 12. Qa4 O-O 13. O-O e4 14. dxe4 Qxc3 {1-0 (51) Malakhov,V (2722)-Zhou,J (2613) China 2017}) 4... Nf6 {[%emt 0:00:58]} 5. Bg2 {[%emt 0:05:54]} Bc5 {[%emt 0:01:05]} 6. Nf3 {[%emt 0:18:09]} d6 {[%emt 0:04:49]} 7. O-O $146 {[%emt 0:00:59]} ({Predecessor:} 7. d3 O-O 8. O-O fxe4 9. dxe4 Be6 10. b3 Nd4 11. Qd3 Nxf3+ 12. Bxf3 Qd7 13. Na4 Bd4 {0-1 (34) Kraev,A (2368)-Smirnov,A (2404) Gornozavodsk 2010}) 7... O-O {[%emt 0:08:22]} 8. h3 {[%emt 0:06:21]} a6 {[%emt 0:08:20]} 9. d3 {[%emt 0:00:22]} Qe8 {[%emt 0:00:43]} 10. Nd5 {[%emt 0:05:05]} Nxd5 {[%emt 0:01:01]} 11. cxd5 {[%emt 0:00:54]} Nd4 {[%emt 0:03:46]} 12. Nxd4 {[%emt 0:32:48]} Bxd4 {[%emt 0:01:47]} 13. Kh2 {[%emt 0:00:22]} f4 {[%emt 0:04:38]} 14. Bd2 {[%emt 0:04:01]} Bxb2 {[%emt 0:08:55]} 15. Rb1 {[%emt 0:00:00]} Bd4 {[%emt 0:00:18]} 16. Rc1 {[%emt 0:01:12]} Qf7 {[%emt 0:02:20]} 17. gxf4 {[%emt 0:02:15]} exf4 {[%emt 0:00:13]} 18. Bf3 {[%emt 0:02:32]} Qf6 {[%emt 0:09:35]} 19. Rxc7 {[%emt 0:07:23]} Qh4 {[%emt 0:00:41]} 20. Bg4 {[%emt 0:00:07]} Bxf2 {[%emt 0:01:00]} 21. Bc3 {[%emt 0:00:29]} Rf7 {[%emt 0:05:07]} 22. Rxc8+ {[%emt 0:01:24]} Rxc8 {[%emt 0:00:10]} 23. Bxc8 {[%emt 0:00:01]} f3 {[%emt 0:08:51]} 24. Rg1 $19 {[%emt 0:02:30]} (24. Kh1 $17 Qg3 25. Rg1 Bxg1 26. Qxg1) 24... Bxg1+ {[%emt 0:02:49]} 25. Qxg1 {[%emt 0:00:02]} f2 {[%emt 0:00:22]} 26. Qf1 {[%emt 0:00:24]} Qf4+ {[%emt 0:00:44]} 27. Kh1 {[%emt 0:00:18]} Qf3+ {[%emt 0:01:32]} 28. Kh2 {[%emt 0:00:02]} Qf4+ {[%emt 0:04:12]} 29. Kh1 {[%emt 0:00:02]} Rc7 {[%emt 0:01:25]} 30. Be6+ {[%emt 0:00:23]} Kh8 {[%emt 0:00:11]} 31. Bb2 {[%emt 0:05:40]} Rc2 {[%emt 0:00:14]} 32. Ba3 {[%emt 0:07:01]} Rc3 {[%emt 0:00:48]} 33. Bxd6 {[%emt 0:00:20]} Qxd6 {[%emt 0:03:16]} 34. Qxf2 {[%emt 0:00:02]} Rxd3 {[%emt 0:02:23]} 35. Qc2 {[%emt 0:00:00]} Rf3 {[%emt 0:00:24]} 36. Qc8+ {[%emt 0:00:43]} Rf8 {[%emt 0:01:28]} 37. Qxb7 {[%emt 0:00:03]} Qg3 {[%emt 0:02:31]} 38. Qxa6 {[%emt 0:00:16]} Qe1+ {[%emt 0:00:34]} 39. Kg2 {[%emt 0:00:07]} Rf2+ {[%emt 0:00:07]} 40. Kg3 {[%emt 0:00:01]} Rxa2+ {[%emt 0:00:19]} 0-1

[Event "Gibraltar Challengers A 2019"]
[Site "Caleta"]
[Date "2019.01.22"]
[Round "2"]
[White "Sikkel, Dirk"]
[Black "Ungureanu, Sandu"]
[Result "1/2-1/2"]
[ECO "B13"]
[WhiteElo "1943"]
[BlackElo "2057"]
[Annotator "NA"]
[PlyCount "165"]
[EventDate "2019.01.18"]
[EventType "swiss"]
[EventCountry "GGB"]
[SourceTitle "playchess.com"]
[Source "ChessBase"]
[SourceQuality "1"]
[TimeControl "6600+10"]

1. e4 {[%emt 0:00:00]} c6 {[%emt 0:00:00]} 2. d4 {[%emt 0:00:05]} d5 {[%emt 0:00:02]} 3. exd5 {[%emt 0:00:11]} cxd5 {[%emt 0:00:07]} 4. Bd3 {[%emt 0:00:13]} Nc6 {[%emt 0:00:11]} 5. c3 {[%emt 0:00:13]} Nf6 {[%emt 0:00:10]} 6. Bf4 {[%emt 0:00:27]} a6 {[%emt 0:00:17]} 7. Nd2 {[%emt 0:03:30]} Bg4 {[%emt 0:00:10]} 8. Ngf3 {[%emt 0:06:46]} e6 {[%emt 0:00:31]} 9. h3 {[%emt 0:00:39]} Bxf3 {[%emt 0:00:07]} 10. Nxf3 {[%emt 0:00:59]} Bd6 {[%emt 0:00:06]} 11. Bxd6 {[%emt 0:00:45]} Qxd6 {[%emt 0:00:05]} 12. O-O {[%emt 0:01:00]} O-O {[%emt 0:01:34]} 13. Re1 {[%emt 0:03:38]} Nd7 {[%emt 0:01:38]} 14. Qc2 {[%emt 0:03:22]} g6 {[%emt 0:00:34]} 15. Rad1 {[%emt 0:01:11]} b5 {[%emt 0:02:39]} 16. Re2 {[%emt 0:10:53]} Qf4 {[%emt 0:01:44]} 17. Qc1 {[%emt 0:01:22]} Qxc1 {[%emt 0:00:14]} 18. Rxc1 {[%emt 0:00:06]} Nb6 {[%emt 0:01:11]} 19. Ne5 {[%emt 0:06:15]} Nxe5 {[%emt 0:01:05]} 20. Rxe5 {[%emt 0:00:12]} Rfc8 {[%emt 0:00:29]} 21. Rce1 {[%emt 0:02:08]} Na4 {[%emt 0:00:23]} 22. R1e2 {[%emt 0:02:28]} Rab8 {[%emt 0:02:05]} 23. f4 {[%emt 0:01:37]} a5 {[%emt 0:00:08]} 24. a3 {[%emt 0:10:43]} b4 {[%emt 0:01:03]} 25. cxb4 {[%emt 0:00:53]} axb4 {[%emt 0:00:15]} 26. R5e3 {[%emt 0:04:02]} Nxb2 {[%emt 0:07:50]} 27. Rxb2 {[%emt 0:02:36]} bxa3 {[%emt 0:00:34]} 28. Rxb8 {[%emt 0:06:56]} Rxb8 {[%emt 0:00:57]} 29. Re2 {[%emt 0:01:01]} Rb4 {[%emt 0:00:28]} 30. Ra2 {[%emt 0:01:29]} Rxd4 {[%emt 0:00:09]} 31. Rxa3 {[%emt 0:00:12]} Rxf4 {[%emt 0:00:06]} 32. g3 {[%emt 0:01:58]} Rb4 {[%emt 0:02:31]} 33. Kf2 {[%emt 0:04:30]} g5 {[%emt 0:01:01]} 34. Ke3 {[%emt 0:04:37]} h5 {[%emt 0:01:47]} 35. Be2 {[%emt 0:01:42]} h4 {[%emt 0:00:44]} 36. g4 {[%emt 0:01:18]} Kg7 {[%emt 0:00:16]} 37. Bf3 {[%emt 0:03:24]} Kf6 {[%emt 0:01:04]} 38. Ra7 {[%emt 0:03:32]} Rb3+ {[%emt 0:01:18]} 39. Kf2 {[%emt 0:00:19]} Rb2+ {[%emt 0:00:11]} 40. Kg1 {[%emt 0:00:52]} d4 {[%emt 0:00:40]} 41. Rd7 {[%emt 0:00:24]} Rd2 {[%emt 0:00:30]} 42. Bg2 {[%emt 0:02:20]} Kg7 {[%emt 0:02:41]} 43. Be4 {[%emt 0:02:54]} Kf6 {[%emt 0:00:35]} 44. Bg2 {[%emt 0:00:05]} Rd3 {[%emt 0:00:59]} 45. Kf2 {[%emt 0:01:03]} e5 {[%emt 0:00:35]} 46. Rd8 {[%emt 0:03:04]} Rc3 {[%emt 0:01:18]} 47. Rd6+ {[%emt 0:01:37]} Ke7 {[%emt 0:00:05]} 48. Rd5 {[%emt 0:00:29]} f6 {[%emt 0:00:11]} 49. Rb5 {[%emt 0:01:13]} Rc2+ {[%emt 0:00:06]} 50. Kf1 {[%emt 0:00:41]} Rc7 {[%emt 0:02:02]} 51. Be4 {[%emt 0:00:20]} Rc3 {[%emt 0:00:41]} 52. Kg2 {[%emt 0:00:16]} Rg3+ {[%emt 0:00:23]} 53. Kh2 {[%emt 0:00:11]} Re3 {[%emt 0:00:10]} 54. Bf5 {[%emt 0:00:25]} d3 {[%emt 0:01:42]} 55. Rd5 {[%emt 0:00:59]} e4 {[%emt 0:00:22]} 56. Bxe4 {[%emt 0:00:17]} Rxe4 {[%emt 0:00:17]} 57. Rxd3 {[%emt 0:00:12]} Re2+ {[%emt 0:00:14]} 58. Kg1 {[%emt 0:00:10]} Ke6 {[%emt 0:00:19]} 59. Rf3 {[%emt 0:00:09]} Rd2 {[%emt 0:01:54]} 60. Rf5 {[%emt 0:00:18]} Rd5 {[%emt 0:01:16]} 61. Rf2 {[%emt 0:00:35]} f5 {[%emt 0:00:26]} 62. gxf5+ {[%emt 0:00:02]} Rxf5 {[%emt 0:00:05]} 63. Ra2 {[%emt 0:00:22]} Rf3 {[%emt 0:00:32]} 64. Kg2 {[%emt 0:00:02]} Rg3+ {[%emt 0:00:23]} 65. Kh2 {[%emt 0:00:06]} Re3 {[%emt 0:00:30]} 66. Ra6+ {[%emt 0:00:07]} Kf5 {[%emt 0:00:07]} 67. Ra5+ {[%emt 0:00:09]} Kf4 {[%emt 0:00:07]} 68. Kg2 {[%emt 0:00:26]} Re2+ {[%emt 0:01:02]} 69. Kf1 {[%emt 0:00:13]} Rd2 {[%emt 0:00:52]} 70. Ra4+ {[%emt 0:00:13]} Kg3 {[%emt 0:00:46]} 71. Rg4+ {[%emt 0:00:28]} Kxh3 {[%emt 0:00:44]} 72. Rxg5 {[%emt 0:00:04]} Kh2 {[%emt 0:00:22]} 73. Rg8 {[%emt 0:00:30]} h3 {[%emt 0:00:07]} 74. Rg7 {[%emt 0:00:11]} Rg2 {[%emt 0:00:14]} 75. Rh7 {[%emt 0:00:11]} Rg5 {[%emt 0:00:13]} 76. Kf2 {[%emt 0:00:12]} Rf5+ {[%emt 0:00:11]} 77. Ke2 {[%emt 0:00:12]} Kg2 {[%emt 0:00:42]} 78. Rg7+ {[%emt 0:00:06]} Kh1 {[%emt 0:00:22]} 79. Rh7 {[%emt 0:00:24]} h2 {[%emt 0:00:10]} 80. Rh8 {[%emt 0:00:15]} Rf4 {[%emt 0:00:11]} 81. Ke3 {[%emt 0:00:16]} Rg4 {[%emt 0:00:48]} 82. Kf3 {[%emt 0:00:16]} Rg2 {[%emt 0:00:13]} 83. Ra8 {[%emt 0:00:20]} 1/2-1/2

[Event "Gibraltar Challengers A 2019"]
[Site "Caleta"]
[Date "2019.01.22"]
[Round "2"]
[White "Nandi, Robin J"]
[Black "Kandic, Milan"]
[Result "0-1"]
[ECO "B32"]
[WhiteElo "1903"]
[BlackElo "2136"]
[Annotator "NA"]
[PlyCount "102"]
[EventDate "2019.01.18"]
[EventType "swiss"]
[EventCountry "GGB"]
[SourceTitle "playchess.com"]
[Source "ChessBase"]
[SourceQuality "1"]
[TimeControl "6600+10"]

1. e4 {[%emt 0:01:12]} c5 {[%emt 0:01:24]} 2. Nf3 {[%emt 0:00:06]} Nc6 {[%emt 0:00:06]} 3. d4 {[%emt 0:00:07]} cxd4 {[%emt 0:00:05]} 4. Nxd4 {[%emt 0:00:07]} e5 {[%emt 0:00:04]} 5. Nb5 {[%emt 0:00:34]} d6 {[%emt 0:00:53]} 6. N1c3 {[%emt 0:00:28]} a6 {[%emt 0:00:05]} 7. Na3 {[%emt 0:00:06]} b5 {[%emt 0:00:09]} 8. Nd5 {[%emt 0:00:08]} Be6 {[%emt 0:01:04]} 9. c4 {[%emt 0:08:23]} bxc4 {[%emt 0:29:35]} 10. Qa4 {[%emt 0:08:33]} Bxd5 {[%emt 0:06:14]} 11. exd5 {[%emt 0:00:04]} Qa5+ {[%emt 0:00:08]} 12. Qxa5 {[%emt 0:00:22]} Nxa5 {[%emt 0:00:02]} 13. Nxc4 {[%emt 0:04:04]} Nxc4 {[%emt 0:00:47]} 14. Bxc4 {[%emt 0:00:03]} Be7 {[%emt 0:01:12]} 15. Bd2 {[%emt 0:06:32]} Nf6 {[%emt 0:01:26]} 16. b4 {[%emt 0:03:49]} Ne4 {[%emt 0:03:37]} 17. Be3 {[%emt 0:16:18]} O-O {[%emt 0:02:17]} 18. O-O {[%emt 0:03:46]} f5 {[%emt 0:07:18]} 19. a4 {[%emt 0:04:05]} f4 {[%emt 0:04:21]} 20. Bb6 {[%emt 0:00:22]} Rfb8 {[%emt 0:06:57]} 21. Ba5 {[%emt 0:03:10]} Bd8 {[%emt 0:02:18]} 22. Bxd8 {[%emt 0:00:13]} Rxb4 {[%emt 0:01:56]} 23. Bxa6 {[%emt 0:04:09]} Rxa6 {[%emt 0:00:38]} 24. a5 {[%emt 0:00:37]} Nc3 {[%emt 0:01:38]} 25. Rfe1 {[%emt 0:03:26]} Kf7 {[%emt 0:03:18]} 26. Rac1 {[%emt 0:02:18]} Nxd5 {[%emt 0:00:17]} 27. Rb1 {[%emt 0:01:51]} Rxb1 {[%emt 0:06:12]} 28. Rxb1 {[%emt 0:00:03]} Ra8 {[%emt 0:00:37]} 29. Bb6 {[%emt 0:06:13]} Nxb6 {[%emt 0:06:35]} 30. axb6 {[%emt 0:10:29]} Rb8 {[%emt 0:00:05]} 31. Kf1 {[%emt 0:00:21]} Ke6 {[%emt 0:00:36]} 32. Ke2 {[%emt 0:00:22]} Rb7 {[%emt 0:07:20]} 33. h4 {[%emt 0:05:50]} Kd7 {[%emt 0:00:35]} 34. Kf3 {[%emt 0:02:16]} Kc6 {[%emt 0:00:23]} 35. g3 {[%emt 0:00:10]} fxg3 {[%emt 0:00:21]} 36. Kxg3 {[%emt 0:00:30]} Rxb6 {[%emt 0:00:22]} 37. Ra1 {[%emt 0:00:52]} Rb7 {[%emt 0:00:56]} 38. Ra8 {[%emt 0:01:17]} Rf7 {[%emt 0:03:52]} 39. Re8 {[%emt 0:00:53]} Kd5 {[%emt 0:00:12]} 40. Rd8 {[%emt 0:00:12]} Ke6 {[%emt 0:00:12]} 41. Re8+ {[%emt 0:01:07]} Re7 {[%emt 0:00:07]} 42. Ra8 {[%emt 0:00:18]} d5 {[%emt 0:00:29]} 43. Kf3 {[%emt 0:01:59]} Rf7+ {[%emt 0:00:23]} 44. Ke3 {[%emt 0:01:00]} d4+ {[%emt 0:00:11]} 45. Ke2 {[%emt 0:00:36]} Kf5 {[%emt 0:00:37]} 46. Ra5 {[%emt 0:00:43]} Kf4 {[%emt 0:00:31]} 47. Rd5 {[%emt 0:03:51]} Ra7 {[%emt 0:00:33]} 48. Rd8 {[%emt 0:00:13]} Ra2+ {[%emt 0:00:08]} 49. Ke1 {[%emt 0:01:00]} Ke4 {[%emt 0:01:32]} 50. Rd7 {[%emt 0:00:25]} Kd3 {[%emt 0:00:29]} 51. Rxg7 {[%emt 0:00:19]} Ra1# {[%emt 0:00:00]} 0-1

[Event "Gibraltar Challengers A 2019"]
[Site "Caleta"]
[Date "2019.01.22"]
[Round "2"]
[White "Fischer, Gerd"]
[Black "Janiszewski, Maciej"]
[Result "0-1"]
[ECO "D02"]
[WhiteElo "1845"]
[BlackElo "2146"]
[Annotator "NA"]
[PlyCount "62"]
[EventDate "2019.01.18"]
[EventType "swiss"]
[EventCountry "GGB"]
[SourceTitle "playchess.com"]
[Source "ChessBase"]
[SourceQuality "1"]
[TimeControl "6600+10"]

1. d4 {[%emt 0:15:52]} Nc6 {[%emt 0:00:05]} 2. Nf3 {[%emt 0:00:29]} d5 {[%emt 0:00:28]} 3. Bf4 {[%emt 0:00:19]} Bg4 {[%emt 0:00:06]} 4. e3 {[%emt 0:00:12]} e6 {[%emt 0:00:09]} 5. h3 {[%emt 0:01:16]} Bh5 {[%emt 0:00:32]} 6. Be2 {[%emt 0:01:54]} Bd6 {[%emt 0:00:08]} 7. Bxd6 {[%emt 0:01:38]} cxd6 {[%emt 0:00:05]} 8. O-O {[%emt 0:00:38]} Nf6 {[%emt 0:00:25]} 9. c4 {[%emt 0:02:27]} Bxf3 {[%emt 0:00:15]} 10. Bxf3 {[%emt 0:00:14]} dxc4 {[%emt 0:00:06]} 11. d5 {[%emt 0:04:19]} Ne5 {[%emt 0:05:26]} 12. dxe6 {[%emt 0:03:31]} fxe6 {[%emt 0:01:22]} 13. Bxb7 {[%emt 0:12:41]} Rb8 {[%emt 0:00:06]} 14. Bf3 {[%emt 0:00:16]} Rxb2 {[%emt 0:00:39]} 15. Na3 {[%emt 0:09:53]} d5 {[%emt 0:12:48]} 16. Qd4 {[%emt 0:21:52]} Nxf3+ {[%emt 0:00:29]} 17. gxf3 {[%emt 0:00:07]} Qb6 {[%emt 0:00:22]} 18. Qe5 {[%emt 0:03:09]} O-O {[%emt 0:00:37]} 19. Rab1 {[%emt 0:01:16]} Rxb1 {[%emt 0:01:04]} 20. Rxb1 {[%emt 0:00:32]} Nd7 {[%emt 0:07:28]} 21. Qc3 {[%emt 0:10:43]} Qa6 {[%emt 0:00:55]} 22. f4 {[%emt 0:00:22]} Nc5 {[%emt 0:03:12]} 23. Rb5 {[%emt 0:06:15]} Nd3 {[%emt 0:02:43]} 24. Ra5 {[%emt 0:05:40]} Qb6 {[%emt 0:00:33]} 25. Rb5 {[%emt 0:04:12]} Qc6 {[%emt 0:03:11]} 26. Qa5 {[%emt 0:01:23]} d4 {[%emt 0:03:49]} 27. Rg5 {[%emt 0:05:50]} Qf3 {[%emt 0:05:01]} 28. Qxa7 {[%emt 0:05:05]} Qxf2+ {[%emt 0:00:11]} 29. Kh1 {[%emt 0:00:06]} g6 {[%emt 0:03:29]} 30. Qxd4 {[%emt 0:01:07]} Rxf4 {[%emt 0:01:20]} 31. Qb6 {[%emt 0:01:40]} Qf1+ {[%emt 0:00:46]} 0-1

[Event "Gibraltar Challengers A 2019"]
[Site "Caleta"]
[Date "2019.01.22"]
[Round "2"]
[White "Francois-Haugrin, Said"]
[Black "Cao Armillas, Jesus"]
[Result "0-1"]
[ECO "B49"]
[WhiteElo "1825"]
[BlackElo "2048"]
[Annotator "NA"]
[PlyCount "43"]
[EventDate "2019.01.18"]
[EventType "swiss"]
[EventCountry "GGB"]
[SourceTitle "playchess.com"]
[Source "ChessBase"]
[SourceQuality "1"]
[TimeControl "6600+10"]

1. e4 {[%emt 0:00:00]} c5 {[%emt 0:00:00]} 2. Nf3 {[%emt 0:00:26]} e6 {[%emt 0:00:00]} 3. d4 {[%emt 0:00:55]} cxd4 {[%emt 0:00:05]} 4. Nxd4 {[%emt 0:00:06]} a6 {[%emt 0:00:02]} 5. Be2 {[%emt 0:00:07]} Nf6 {[%emt 0:00:26]} 6. Nc3 {[%emt 0:01:07]} Nc6 {[%emt 0:00:15]} 7. O-O {[%emt 0:00:06]} Qc7 {[%emt 0:00:45]} 8. Be3 {[%emt 0:01:02]} Bb4 {[%emt 0:00:35]} 9. Qd3 {[%emt 0:02:15]} Ne5 {[%emt 0:03:56]} 10. Qd1 {[%emt 0:02:33]} Bxc3 {[%emt 0:04:00]} 11. bxc3 {[%emt 0:01:05]} Nxe4 {[%emt 0:00:21]} 12. Bf4 {[%emt 0:01:51]} d6 {[%emt 0:02:40]} 13. c4 {[%emt 0:13:17]} Nc3 {[%emt 0:03:47]} 14. Qd2 {[%emt 0:00:11]} Nxe2+ {[%emt 0:00:12]} 15. Nxe2 {[%emt 0:01:45]} Nxc4 {[%emt 0:01:15]} 16. Qc3 {[%emt 0:07:06]} e5 {[%emt 0:00:11]} 17. Qg3 {[%emt 0:20:29]} O-O {[%emt 0:02:19]} 18. Bg5 {[%emt 0:04:57]} f5 {[%emt 0:00:42]} 19. f3 {[%emt 0:12:14]} f4 {[%emt 0:02:41]} 20. Qh4 {[%emt 0:01:36]} Ne3 {[%emt 0:01:03]} 21. Rfc1 {[%emt 0:00:09]} h6 {[%emt 0:01:22]} 22. Bxh6 {[%emt 0:03:29]} 0-1